fUST/lending_fUST_20250719
["ID","MTS","AMOUNT","RATE_DAILY","PERIOD"]
[373127829,1752870649967,-25062.5227908,0.00020167,2]
[373127830,1752870649977,-500.0,0.00020173,2]
[373127831,1752870649987,-500.0,0.00020173,2]
[373127832,1752870649996,-500.0,0.00020173,2]
[373127833,1752870650006,-500.0,0.00020173,2]
[373127834,1752870650015,-500.0,0.00020173,2]
[373127835,1752870650025,-500.0,0.00020173,2]
[373127836,1752870650035,-500.0,0.00020173,2]
[373127837,1752870650045,-217.17818657,0.00020173,2]
[373127838,1752870650055,-353.014736,0.00020187,2]
[373127839,1752870650065,-213.58043898,0.00020221,2]
[373127840,1752870650075,-500.0,0.00020295,2]
[373127841,1752870650084,-500.0,0.00020295,2]
[373127842,1752870650094,-923.65,0.00020344,2]
[373127843,1752870650104,-1176.27,0.00020345,2]
[373127844,1752870650114,-460.0,0.00020345,2]
[373127845,1752870650123,-2010.75,0.00020345,2]
[373127846,1752870650133,-460.0,0.00020345,2]
[373127847,1752870650143,-1073.71,0.00020345,2]
[373127848,1752870650156,-825.7,0.00020345,2]
[373127849,1752870650166,-465.46,0.00020345,2]
[373127850,1752870650175,-460.0,0.00020345,2]
[373127851,1752870650185,-1138.77,0.00020345,2]
[373127852,1752870650195,-460.0,0.00020345,2]
[373127853,1752870650206,-460.0,0.00020346,2]
[373127854,1752870650215,-544.92,0.00020346,2]
[373127855,1752870650225,-460.0,0.00020346,2]
[373127856,1752870650235,-540.05,0.00020348,2]
[373127857,1752870650245,-470.29154336,0.00020349,2]
[373127858,1752870650254,-500.0,0.00020349,2]
[373127859,1752870650263,-500.0,0.00020349,2]
[373127860,1752870650273,-151.0,0.0002035,2]
[373127861,1752870650283,-151.0,0.0002035,2]
[373127862,1752870650292,-151.0,0.0002035,2]
[373127863,1752870650301,-189.703907,0.0002035,2]
[373127864,1752870650311,-189.703907,0.0002035,2]
[373127865,1752870650321,-151.0,0.0002035,2]
[373127866,1752870650331,-1223.09,0.0002035,2]
[373127867,1752870650341,-488.93,0.0002035,2]
[373127868,1752870650350,-796.77,0.00020351,2]
[373127869,1752870650359,-1054.39,0.00020351,2]
[373127870,1752870650369,-1470.31,0.00020352,2]
[373127871,1752870650378,-694.25,0.00020352,2]
[373127872,1752870650388,-151.0,0.00020354,2]
[373127873,1752870650400,-151.0,0.000204,3]
[373127874,1752870650409,-2156.0,0.00020423,2]
[373127875,1752870650419,-968.0,0.00020423,2]
[373127876,1752870650428,-407.0,0.00020423,2]
[373127877,1752870650437,-647.0,0.00020423,2]
[373127878,1752870650446,-151.0,0.00020457,2]
[373127879,1752870650456,-500.0,0.00020457,2]
[373127880,1752870650466,-151.0,0.00020457,2]
[373127881,1752870650475,-198.0,0.00020457,2]
[373127882,1752870650486,-223.87291385,0.00020457,2]
[373127883,1752870650496,-151.0,0.00020457,2]
[373127884,1752870650506,-500.0,0.00020457,2]
[373127885,1752870650516,-269.52684723,0.00020457,2]
[373127886,1752870650525,-151.0,0.00020457,2]
[373127887,1752870650535,-151.0,0.00020457,2]
[373127888,1752870650544,-923.65,0.00020618,2]
[373127889,1752870650554,-1176.27,0.00020619,2]
[373127890,1752870650575,-460.0,0.00020619,2]
[373127891,1752870650586,-2010.75,0.00020619,2]
[373127892,1752870650596,-460.0,0.00020619,2]
[373127893,1752870650607,-1073.71,0.00020619,2]
[373127894,1752870650617,-825.7,0.00020619,2]
[373127895,1752870650627,-465.46,0.00020619,2]
[373127896,1752870650637,-301.37,0.00020619,2]
[373127897,1752870650648,-1138.77,0.00020619,2]
[373127898,1752870650658,-460.0,0.00020619,2]
[373127899,1752870650668,-460.0,0.0002062,2]
[373127900,1752870650678,-544.92,0.0002062,2]
[373127901,1752870650688,-460.0,0.0002062,2]
[373127902,1752870650697,-540.05,0.00020622,2]
[373127903,1752870650707,-1223.09,0.00020624,2]
[373127904,1752870650717,-488.93,0.00020624,2]
[373127905,1752870650727,-796.77,0.00020625,2]
[373127906,1752870650736,-1054.39,0.00020625,2]
[373127907,1752870650746,-1470.31,0.00020626,2]
[373127908,1752870650756,-694.25,0.00020626,2]
[373127909,1752870650765,-151.0,0.00020629,2]
[373127910,1752870650774,-151.0,0.00020629,2]
[373127911,1752870650784,-151.0,0.00020629,2]
[373127912,1752870650795,-501.57946842,0.00020637,2]
[373127913,1752870650806,-500.0,0.00020637,2]
[373127914,1752870650815,-1000.0,0.00020637,2]
[373127915,1752870650825,-460.0,0.00020657,2]
[373127916,1752870650835,-151.0,0.00020715,2]
[373127917,1752870650845,-151.0,0.00020715,2]
[373127918,1752870650854,-151.0,0.00020715,2]
[373127919,1752870650864,-151.0,0.00020715,2]
[373127920,1752870650875,-151.0,0.00020715,2]
[373127921,1752870650885,-151.0,0.00020715,2]
[373127922,1752870650895,-896.371789,0.00020715,2]
[373127923,1752870650905,-896.371789,0.00020715,2]
[373127924,1752870650914,-212.174319,0.00020715,2]
[373127925,1752870650923,-212.174319,0.00020715,2]
[373127926,1752870650933,-1000.0,0.00020721,2]
[373127927,1752870650942,-151.0,0.00020731,2]
[373127928,1752870650951,-500.0,0.00020731,2]
[373127929,1752870650960,-151.0,0.00020731,2]
[373127930,1752870650970,-151.0,0.00020731,2]
[373127931,1752870650980,-500.0,0.00020731,2]
[373127932,1752870650989,-151.0,0.00020731,2]
[373127933,1752870650998,-203.19342844,0.00020731,2]
[373127934,1752870651008,-952.49343988,0.00020739,2]
[373127935,1752870651017,-241617.43939321,0.00020739,2]
[373127936,1752870651026,-151.0,0.00020739,2]
[373127937,1752870651035,-151.0,0.00020739,2]
[373127938,1752870651045,-1170.148198,0.00020753,8]
[373127939,1752870651055,-500.0,0.00020761,2]
[373127940,1752870651066,-500.0,0.00020761,2]
[373127941,1752870651094,-504.32043466,0.00020761,2]
[373127942,1752870651103,-769.081,0.00020827,2]
[373127943,1752870651115,-178.372,0.00020827,2]
[373127944,1752870651127,-500.0,0.0002083,2]
[373127945,1752870651138,-503.18757773,0.00020843,2]
[373127946,1752870651152,-923.65,0.00020892,2]
[373127947,1752870651161,-1176.27,0.00020893,2]
[373127948,1752870651171,-460.0,0.00020893,2]
[373127949,1752870651181,-2010.75,0.00020893,2]
[373127950,1752870651191,-314.52,0.00020893,2]
[373127951,1752870651200,-1073.71,0.00020893,2]
[373127952,1752870651210,-825.7,0.00020893,2]
[373127953,1752870651220,-465.46,0.00020893,2]
[373127954,1752870651230,-1138.77,0.00020893,2]
[373127955,1752870651239,-460.0,0.00020893,2]
[373127956,1752870651249,-267.52,0.00020894,2]
[373127957,1752870651259,-544.92,0.00020894,2]
[373127958,1752870651268,-460.0,0.00020894,2]
[373127959,1752870651278,-540.05,0.00020896,2]
[373127960,1752870651290,-1223.09,0.00020898,2]
[373127961,1752870651300,-488.93,0.00020898,2]
[373127962,1752870651310,-796.77,0.00020899,2]
[373127963,1752870651321,-1054.39,0.00020899,2]
[373127964,1752870651331,-151.0,0.000209,3]
[373127965,1752870651341,-249.93178815,0.000209,2]
[373127966,1752870651353,-1470.31,0.000209,2]
[373127967,1752870651363,-694.25,0.000209,2]
[373127968,1752870651374,-500.0,0.00020938,2]
[373127969,1752870651384,-215.0738,0.00020988,2]
[373127970,1752870651394,-224.15,0.0002099,2]
[373127971,1752870651406,-3000.0,0.00021,2]
[373127972,1752870651416,-200.0000005,0.00021,2]
[373127973,1752870651425,-270.05170143,0.00021,2]
[373127974,1752870651436,-6808.5013359,0.00021,2]
[373127975,1752870651550,-9057.9830335,0.00021,2]
[373127976,1752870651794,-460.0,0.00016508,2]
[373127977,1752870651810,-460.0,0.00016508,2]
[373127978,1752870651819,-1439.78,0.00018433,2]
[373127979,1752870651829,-1439.78,0.00018707,2]
[373127980,1752870651838,-1439.78,0.00018981,2]
[373127981,1752870651849,-1439.78,0.00019255,2]
[373127982,1752870651858,-16720.88,0.00021,2]
[373127983,1752870651869,-705.18422787,0.00021,2]
[373127984,1752870651882,-1707.45140273,0.00021,2]
[373127985,1752870651891,-295.59374989,0.00021005,2]
[373127986,1752870651902,-500.0,0.00021005,2]
[373127987,1752870651912,-151.0,0.00021005,2]
[373127988,1752870651921,-255.77817653,0.00021005,2]
[373127989,1752870651931,-500.0,0.00021005,2]
[373127990,1752870651941,-151.0,0.00021005,2]
[373127991,1752870651950,-3710.379175,0.0002101,2]
[373127992,1752870651960,-151.0,0.00021157,2]
[373127993,1752870651969,-923.65,0.00021166,2]
[373127994,1752870651979,-1176.27,0.00021167,2]
[373127995,1752870651988,-587.34776656,0.00021167,2]
[373127996,1752870651997,-105.92972929,0.00021167,2]
[373127997,1752870652009,-1718.06597466,0.00021167,2]
[373127998,1752870652021,-186.75429605,0.00021167,2]
[373127999,1752870652030,-748.78211605,0.00021167,2]
[373128000,1752870652041,-324.92788395,0.00021167,2]
[373128001,1752870652051,-284.05704681,0.00021167,2]
[373128002,1752870654466,2160.08094998,0.000165,2]
[373128003,1752870654489,2839.91905002,0.000165,2]
[373128004,1752870670583,5000.0,0.000165,2]
[373128005,1752870688261,150.0,0.00014935,2]
[373128006,1752870688672,150.0,0.00015647,2]
[373128007,1752870689069,150.0,0.00016358,2]
[373128008,1752870689851,1710.08094998,0.0001641,2]
[373128009,1752870689875,2605.53834163,0.0001641,2]
[373128010,1752870750824,239.88,0.00021988,120]
[373128011,1752870753856,170.8643512,0.0001641,2]
[373128012,1752870759551,150.0,0.00014598,2]
[373128013,1752870759973,150.0,0.00015293,2]
[373128014,1752870760370,150.0,0.00015988,2]
[373128015,1752870868228,243.52,0.00021988,120]
[373128016,1752870924517,6773.59730717,0.00015601,2]
[373128017,1752870924540,10000.0,0.00015601,2]
[373128018,1752870924564,8126.40269283,0.00015601,2]
[373128019,1752870949748,165.35750674,0.00016408,2]
[373128023,1752871155473,165.3575067,0.00016408,2]
[373128049,1752871194910,1542.88229373,0.0001551,2]
[373128050,1752871194932,5101.76000497,0.0001551,2]
[373128108,1752871233925,508.733958,0.00015509,2]
[373128303,1752871353948,165.3575067,0.00016407,2]
[373128644,1752871539236,165.3575067,0.00016407,2]
[373128897,1752871646099,-158.0,0.00016503,2]
[373128898,1752871646122,-300.0,0.00016503,2]
[373128899,1752871646143,-300.0,0.00016504,2]
[373128900,1752871646165,-300.0,0.00016504,2]
[373128901,1752871646191,-799.0,0.00016504,2]
[373128902,1752871646211,-300.0,0.00016504,2]
[373128903,1752871646232,-300.0,0.00016504,2]
[373128904,1752871646254,-300.0,0.00016504,2]
[373128905,1752871646278,-132.53028,0.00016505,2]
[373128925,1752871651828,2914.43213166,0.00016408,2]
[373128996,1752871684326,150.0,0.00014598,2]
[373129076,1752871715307,197.19696058,0.00016405,2]
[373129246,1752871793633,403.730764,0.00013699,2]
[373129459,1752871836830,-300.0,0.00016504,2]
[373129460,1752871836840,-300.0,0.00016504,2]
[373129461,1752871836852,-460.0,0.00016504,2]
[373129462,1752871836862,-23094.39634908,0.00016505,2]
[373129463,1752871836872,-327.46972,0.00016505,2]
[373129464,1752871836882,-460.0,0.00016505,2]
[373129465,1752871836891,-460.0,0.00016505,2]
[373129466,1752871836901,-980.91,0.00016505,2]
[373129467,1752871836910,-460.0,0.00016505,2]
[373129468,1752871836920,-460.0,0.00016505,2]
[373129469,1752871836929,-460.0,0.00016505,2]
[373129470,1752871836939,-460.0,0.00016505,2]
[373129471,1752871836949,-742.52,0.00016505,2]
[373129472,1752871836958,-460.0,0.00016505,2]
[373129473,1752871836968,-460.0,0.00016505,2]
[373129475,1752871836977,-495.23,0.00016505,2]
[373129477,1752871836987,-500.0,0.00016505,2]
[373129479,1752871836996,-370.05392063,0.00016505,2]
[373129480,1752871837006,-500.0,0.00016505,2]
[373129481,1752871837015,-500.0,0.00016505,2]
[373129482,1752871837025,-373.17601295,0.00016505,2]
[373129484,1752871837034,-555.51243723,0.00016505,2]
[373129486,1752871837044,-500.0,0.00016505,2]
[373129487,1752871837054,-500.0,0.00016505,2]
[373129488,1752871837063,-500.0,0.00016505,2]
[373129489,1752871837072,-500.0,0.00016505,2]
[373129490,1752871837081,-500.0,0.00016505,2]
[373129491,1752871837091,-500.0,0.00016505,2]
[373129492,1752871837101,-500.0,0.00016505,2]
[373129493,1752871837111,-500.0,0.00016505,2]
[373129494,1752871837120,-294.6510717,0.00016505,2]
[373129495,1752871837132,-496.17630134,0.00016505,2]
[373129496,1752871837142,-636.57694618,0.00016505,2]
[373129497,1752871837151,-500.0,0.00016505,2]
[373129498,1752871837161,-432.87,0.00016505,2]
[373129499,1752871837170,-500.0,0.00016505,2]
[373129500,1752871837181,-500.0,0.00016505,2]
[373129501,1752871837190,-460.0,0.00016505,2]
[373129502,1752871837200,-500.0,0.00016505,2]
[373129503,1752871837210,-500.0,0.00016505,2]
[373129504,1752871837219,-500.0,0.00016505,2]
[373129505,1752871837352,-300.0,0.00016505,2]
[373129506,1752871837372,-460.0,0.00016505,2]
[373129507,1752871837382,-460.0,0.00016505,2]
[373129508,1752871837392,-460.0,0.00016505,2]
[373129509,1752871837402,-460.0,0.00016505,2]
[373129510,1752871837412,-460.0,0.00016505,2]
[373129511,1752871837422,-460.0,0.00016505,2]
[373129512,1752871837432,-460.0,0.00016505,2]
[373129513,1752871837441,-460.0,0.00016505,2]
[373129514,1752871837451,-460.0,0.00016505,2]
[373129515,1752871837462,-460.0,0.00016505,2]
[373129516,1752871837472,-460.0,0.00016505,2]
[373129517,1752871837482,-460.0,0.00016505,2]
[373129518,1752871837492,-460.0,0.00016505,2]
[373129519,1752871837502,-460.0,0.00016506,2]
[373129520,1752871837512,-434.63513815,0.00016506,2]
[373129521,1752871837522,-460.0,0.00016506,2]
[373129523,1752871837531,-460.0,0.00016506,2]
[373129524,1752871837541,-460.0,0.00016506,2]
[373129525,1752871837550,-460.0,0.00016506,2]
[373129526,1752871837560,-460.0,0.00016506,2]
[373129527,1752871837570,-460.0,0.00016506,2]
[373129528,1752871837579,-112.6313781,0.00016506,2]
[373129555,1752871837968,-166.0363156,0.00016506,2]
[373129557,1752871837978,-460.0,0.00016506,2]
[373129559,1752871837987,-460.0,0.00016506,2]
[373129562,1752871837997,-460.0,0.00016506,2]
[373129564,1752871838007,-460.0,0.00016506,2]
[373129566,1752871838016,-460.0,0.00016506,2]
[373129568,1752871838025,-460.0,0.00016506,2]
[373129570,1752871838035,-460.0,0.00016506,2]
[373129572,1752871838044,-460.0,0.00016506,2]
[373129574,1752871838053,-278.08096329,0.00016506,2]
[373129576,1752871838063,-581.75250594,0.00016506,2]
[373129577,1752871838073,-460.0,0.00016506,2]
[373129578,1752871838083,-460.0,0.00016506,2]
[373129579,1752871838092,-460.0,0.00016506,2]
[373129580,1752871838104,-460.0,0.00016506,2]
[373129581,1752871838113,-500.0,0.00016506,2]
[373129583,1752871838125,-500.0,0.00016506,2]
[373129585,1752871838139,-460.0,0.00016506,2]
[373129586,1752871838149,-500.0,0.00016506,2]
[373129587,1752871838158,-500.0,0.00016506,2]
[373129588,1752871838167,-460.0,0.00016506,2]
[373129589,1752871838177,-460.0,0.00016506,2]
[373129590,1752871838187,-460.0,0.00016506,2]
[373129591,1752871838196,-460.0,0.00016506,2]
[373129592,1752871838206,-460.0,0.00016506,2]
[373129593,1752871838216,-460.0,0.00016506,2]
[373129594,1752871838226,-460.0,0.00016506,2]
[373129595,1752871838236,-460.0,0.00016506,2]
[373129596,1752871838245,-460.0,0.00016506,2]
[373129598,1752871838255,-460.0,0.00016506,2]
[373129599,1752871838264,-460.0,0.00016506,2]
[373129600,1752871838273,-460.0,0.00016506,2]
[373129601,1752871838283,-460.0,0.00016506,2]
[373129602,1752871838292,-460.0,0.00016506,2]
[373129603,1752871838302,-510.95829107,0.00016506,2]
[373129604,1752871838311,-460.45448775,0.00016506,2]
[373129605,1752871838321,-460.0,0.00016506,2]
[373129606,1752871838330,-460.0,0.00016506,2]
[373129607,1752871838339,-460.0,0.00016506,2]
[373129608,1752871838350,-2052.24,0.00016506,2]
[373129609,1752871838359,-460.0,0.00016506,2]
[373129610,1752871838368,-460.0,0.00016506,2]
[373129611,1752871838378,-460.0,0.00016506,2]
[373129612,1752871838389,-460.0,0.00016506,2]
[373129613,1752871838400,-460.0,0.00016506,2]
[373129614,1752871838411,-460.0,0.00016506,2]
[373129615,1752871838422,-460.0,0.00016506,2]
[373129616,1752871838432,-460.0,0.00016506,2]
[373129617,1752871838442,-460.0,0.00016506,2]
[373129618,1752871838451,-460.0,0.00016506,2]
[373129619,1752871838461,-460.0,0.00016506,2]
[373129620,1752871838471,-460.0,0.00016506,2]
[373129621,1752871838482,-439.43163817,0.00016506,2]
[373129622,1752871838493,-460.0,0.00016506,2]
[373129623,1752871838503,-460.0,0.00016506,2]
[373129624,1752871838513,-460.0,0.00016506,2]
[373129625,1752871838522,-455.0281947,0.00016506,2]
[373129626,1752871838535,-4.9718053,0.00016506,2]
[373129627,1752871838544,-285.78819468,0.00016506,2]
[373129669,1752871840282,-174.21180532,0.00016506,2]
[373129671,1752871840292,-611.93,0.00016506,2]
[373129673,1752871840302,-460.0,0.00016506,2]
[373129675,1752871840312,-460.0,0.00016506,2]
[373129677,1752871840322,-460.0,0.00016507,2]
[373129679,1752871840332,-460.0,0.00016507,2]
[373129681,1752871840341,-460.0,0.00016507,2]
[373129683,1752871840351,-460.0,0.00016507,2]
[373129685,1752871840361,-105.72385552,0.00016507,2]
[373129687,1752871840373,-354.27614448,0.00016507,2]
[373129689,1752871840383,-384.39154922,0.00016507,2]
[373129978,1752871843119,-460.0,0.00016506,2]
[373129980,1752871843131,-75.60845078,0.00016507,2]
[373129983,1752871843143,-460.0,0.00016507,2]
[373129984,1752871843152,-334.75436663,0.00016507,2]
[373130270,1752871846141,-125.24563337,0.00016507,2]
[373130272,1752871846151,-460.0,0.00016507,2]
[373130274,1752871846160,-460.0,0.00016507,2]
[373130276,1752871846170,-460.0,0.00016507,2]
[373130278,1752871846179,-460.0,0.00016507,2]
[373130280,1752871846189,-460.0,0.00016507,2]
[373130282,1752871846198,-461.30423293,0.00016507,2]
[373130284,1752871846208,-460.0,0.00016507,2]
[373130286,1752871846217,-460.38662116,0.00016507,2]
[373130287,1752871846226,-68.6276674,0.00016507,2]
[373130290,1752871846242,-391.3723326,0.00016507,2]
[373130291,1752871846251,-466.33210977,0.00016507,2]
[373130292,1752871846260,-462.51434184,0.00016507,2]
[373130293,1752871846269,-463.56948425,0.00016507,2]
[373130294,1752871846278,-461.01168791,0.00016507,2]
[373130295,1752871846286,-460.0,0.00016507,2]
[373130296,1752871846296,-461.67166309,0.00016507,2]
[373130297,1752871846306,-460.0,0.00016507,2]
[373130298,1752871846315,-500.0,0.00016507,2]
[373130299,1752871846324,-500.0,0.00016507,2]
[373130300,1752871846333,-460.0,0.00016507,2]
[373130301,1752871846342,-460.0,0.00016507,2]
[373130302,1752871846351,-460.0,0.00016507,2]
[373130303,1752871846362,-460.0,0.00016507,2]
[373130304,1752871846371,-460.0,0.00016507,2]
[373130305,1752871846380,-460.0,0.00016507,2]
[373130306,1752871846389,-460.0,0.00016507,2]
[373130307,1752871846398,-301.82657253,0.00016507,2]
[373130308,1752871846407,-460.0,0.00016507,2]
[373130309,1752871846415,-460.0,0.00016507,2]
[373130310,1752871846425,-575.08963676,0.00016508,2]
[373130311,1752871846434,-460.0,0.00016508,2]
[373130312,1752871846443,-460.0,0.00016508,2]
[373130313,1752871846453,-460.0,0.00016508,2]
[373130314,1752871846463,-460.0,0.00016508,2]
[373130315,1752871846472,-206.61217125,0.00016508,2]
[373130424,1752871896123,197.19696058,0.00016409,2]
[373130690,1752872059989,196.23420681,0.00016408,2]
[373130749,1752872102532,24900.0,0.00015506,2]
[373131228,1752872417057,339.155972,0.00015505,2]
[373131435,1752872500103,7103.83397184,0.00016229,2]
[373131683,1752872824710,383.544225,0.00013699,2]
[373131685,1752872836096,-159.24677689,0.00016404,2]
[373131686,1752872836117,-415.48397111,0.00016497,2]
[373131923,1752873034054,-159.24677688,0.00016403,2]
[373131925,1752873034064,-500.0,0.00016495,2]
[373131927,1752873034073,-500.0,0.00016495,2]
[373131929,1752873034083,-500.0,0.00016495,2]
[373131931,1752873034092,-500.0,0.00016495,2]
[373131933,1752873034102,-500.0,0.00016495,2]
[373131935,1752873034112,-500.0,0.00016495,2]
[373131937,1752873034122,-500.0,0.00016495,2]
[373131939,1752873034132,-500.0,0.00016495,2]
[373131941,1752873034141,-500.0,0.00016495,2]
[373131943,1752873034151,-500.0,0.00016495,2]
[373131945,1752873034160,-500.0,0.00016495,2]
[373131947,1752873034170,-500.0,0.00016495,2]
[373131948,1752873034179,-629.04382386,0.00016495,2]
[373131949,1752873034188,-784.51602889,0.00016497,2]
[373131950,1752873034197,-300.0,0.00016497,2]
[373131951,1752873034207,-300.0,0.00016497,2]
[373131952,1752873034216,-300.0,0.00016497,2]
[373131953,1752873034225,-300.0,0.00016497,2]
[373131954,1752873034234,-300.0,0.00016497,2]
[373131955,1752873034244,-160.0,0.00016502,2]
[373131958,1752873034253,-460.0,0.00016502,2]
[373131960,1752873034263,-218.58883401,0.00016502,2]
[373131962,1752873034274,-241.41116599,0.00016502,2]
[373131964,1752873034283,-460.0,0.00016502,2]
[373131966,1752873034293,-384.12924167,0.00016502,2]
[373131968,1752873034305,-75.87075833,0.00016502,2]
[373131970,1752873034314,-460.0,0.00016502,2]
[373131972,1752873034324,-460.0,0.00016502,2]
[373131974,1752873034333,-460.0,0.00016502,2]
[373131976,1752873034343,-518.46,0.00016502,2]
[373131978,1752873034352,-427.58,0.00016502,2]
[373131980,1752873034361,-463.36643536,0.00016502,2]
[373131982,1752873034370,-460.0,0.00016503,2]
[373131984,1752873034381,-139.1696134,0.00016503,2]
[373131987,1752873034397,-320.8303866,0.00016503,2]
[373131989,1752873034408,-460.0,0.00016503,2]
[373131991,1752873034417,-460.0,0.00016503,2]
[373131993,1752873034427,-460.0,0.00016503,2]
[373131995,1752873034436,-460.0,0.00016503,2]
[373131997,1752873034446,-460.0,0.00016503,2]
[373131999,1752873034455,-460.0,0.00016503,2]
[373132015,1752873034600,-460.0,0.00016503,2]
[373132017,1752873034610,-460.0,0.00016503,2]
[373132019,1752873034619,-460.0,0.00016503,2]
[373132021,1752873034629,-521.72826935,0.00016503,2]
[373132023,1752873034638,-187.16479723,0.00016503,2]
[373132025,1752873034647,-160.4287729,0.00016503,2]
[373132027,1752873034657,-940.04,0.00016503,2]
[373132029,1752873034668,-460.0,0.00016503,2]
[373132031,1752873034678,-460.0,0.00016503,2]
[373132033,1752873034687,-460.0,0.00016503,2]
[373132035,1752873034696,-460.0,0.00016503,2]
[373132037,1752873034706,-460.0,0.00016503,2]
[373132039,1752873034715,-711.59,0.00016503,2]
[373132041,1752873034724,-460.0,0.00016503,2]
[373132043,1752873034733,-460.0,0.00016503,2]
[373132045,1752873034742,-500.0,0.00016503,2]
[373132047,1752873034751,-500.0,0.00016503,2]
[373132049,1752873034762,-500.0,0.00016503,2]
[373132051,1752873034771,-347.07565138,0.00016503,2]
[373132053,1752873034781,-500.0,0.00016503,2]
[373132055,1752873034790,-500.0,0.00016503,2]
[373132057,1752873034800,-500.0,0.00016503,2]
[373132059,1752873034809,-500.0,0.00016503,2]
[373132061,1752873034819,-500.0,0.00016503,2]
[373132063,1752873034829,-500.0,0.00016503,2]
[373132065,1752873034838,-500.0,0.00016503,2]
[373132067,1752873034848,-500.0,0.00016503,2]
[373132069,1752873034857,-500.0,0.00016503,2]
[373132071,1752873034867,-500.0,0.00016503,2]
[373132074,1752873034876,-500.0,0.00016503,2]
[373132076,1752873034886,-500.0,0.00016503,2]
[373132078,1752873034895,-500.0,0.00016503,2]
[373132080,1752873034904,-396.43630669,0.00016503,2]
[373132083,1752873034926,-103.56369331,0.00016503,2]
[373132085,1752873034936,-500.0,0.00016503,2]
[373132087,1752873034945,-500.0,0.00016503,2]
[373132089,1752873034954,-500.0,0.00016503,2]
[373132091,1752873034963,-315.41008954,0.00016503,2]
[373132093,1752873034976,-184.58991046,0.00016503,2]
[373132095,1752873034985,-626.52583461,0.00016503,2]
[373132097,1752873034995,-500.0,0.00016503,2]
[373132099,1752873035004,-290.36802744,0.00016503,2]
[373132101,1752873035013,-500.0,0.00016503,2]
[373132103,1752873035022,-500.0,0.00016503,2]
[373132105,1752873035032,-500.0,0.00016503,2]
[373132107,1752873035041,-500.0,0.00016503,2]
[373132109,1752873035051,-500.0,0.00016503,2]
[373132111,1752873035060,-500.0,0.00016503,2]
[373132113,1752873035070,-500.0,0.00016503,2]
[373132115,1752873035080,-500.0,0.00016503,2]
[373132118,1752873035090,-500.0,0.00016503,2]
[373132120,1752873035100,-500.0,0.00016503,2]
[373132122,1752873035110,-500.0,0.00016503,2]
[373132124,1752873035119,-500.0,0.00016503,2]
[373132126,1752873035129,-500.0,0.00016503,2]
[373132128,1752873035138,-500.0,0.00016503,2]
[373132130,1752873035148,-500.0,0.00016503,2]
[373132132,1752873035158,-500.0,0.00016503,2]
[373132134,1752873035168,-500.0,0.00016503,2]
[373132136,1752873035178,-500.0,0.00016503,2]
[373132138,1752873035188,-500.0,0.00016503,2]
[373132140,1752873035197,-500.0,0.00016503,2]
[373132142,1752873035207,-500.0,0.00016503,2]
[373132144,1752873035218,-500.0,0.00016503,2]
[373132146,1752873035228,-500.0,0.00016503,2]
[373132148,1752873035237,-201.51247571,0.00016503,2]